bitfinex/quotes_ETHUSD_20250529
["timestamp","ask_amount","ask_price","bid_price","bid_amount"]
[1748503765530,3.803,2733.7,2732.6,3.65950724]
[1748503765531,0.9834,2733.2,2732.6,3.65950724]
[1748503765743,0.9834,2733.2,2732.6,3.65948654]
[1748503766322,0.9834,2733.2,2732.5,11.65953565]
[1748503766525,0.9834,2733.2,2732.6,3.65944756]
[1748503766688,0.9834,2733.2,2732.6,6.59495092]
[1748503766887,0.9834,2733.2,2732.9,3.65901909]
[1748503767129,4.67421362,2733.6,2732.9,3.65901909]
[1748503767329,4.12576167,2733.5,2732.7,0.1478]
[1748503767515,4.67456247,2733.4,2732.7,7.46138068]
[1748503769718,4.65099369,2733.3,2732.6,4.6705035]
[1748503769895,4.65099369,2733.3,2732.6,8.4725035]
[1748503770631,3.6587589,2733.2,2732.5,3.65956286]
[1748503770820,0.9964,2733.0,2732.6,11.65951303]
[1748503771488,0.9964,2733.0,2732.4,4.67075449]
[1748503771489,0.9964,2733.0,2732.4,8.47266941]
[1748503772028,0.9964,2733.0,2732.5,11.65964855]
[1748503772230,0.9964,2733.0,2732.5,8.0]
[1748503772391,0.46552837,2732.9,2732.4,8.0]
[1748503772594,0.9916,2732.8,2732.2,3.66005012]
[1748503774296,0.9916,2732.8,2732.3,3.65990624]
[1748503776706,0.9916,2732.8,2732.2,3.66000011]
[1748503778031,0.9916,2732.8,2732.3,3.65991653]
[1748503778357,0.9916,2732.8,2732.3,3.65991146]
[1748503778887,0.9916,2732.8,2732.2,3.66001144]
[1748503779573,0.9916,2732.8,2732.3,3.65991678]
[1748503779760,0.9916,2732.8,2732.4,3.6597641]
[1748503780977,0.9916,2732.8,2732.2,3.66004351]
[1748503781175,0.9916,2732.8,2732.3,0.03659508]
[1748503781366,3.65827234,2733.6,2732.8,3.65925058]
[1748503781564,1.0168,2733.5,2732.8,3.65925058]
[1748503781745,1.0168,2733.5,2732.9,3.65905358]
[1748503782473,1.0168,2733.4,2732.8,3.65921404]
[1748503782674,1.0168,2733.3,2732.8,3.65921404]
[1748503782978,1.0168,2733.3,2732.7,3.65932295]
[1748503783375,1.0168,2733.2,2732.4,8.0]
[1748503783677,1.0168,2733.1,2732.6,3.65949935]
[1748503784979,1.0168,2733.1,2732.6,11.65949935]
[1748503786178,1.0168,2733.1,2732.6,11.65949106]
[1748503786382,0.9748,2733.2,2732.6,8.0]
[1748503786680,0.9748,2733.2,2732.7,3.65937394]
[1748503787759,0.9748,2733.2,2732.8,3.6592441]
[1748503787965,0.9748,2733.2,2732.8,3.65924157]
[1748503789486,0.9748,2733.2,2732.8,3.6592087]
[1748503789677,0.9748,2733.2,2732.9,3.65898897]
[1748503790260,0.9748,2733.2,2732.6,8.1794]
[1748503790261,0.9748,2733.2,2732.7,8.0]
[1748503790463,0.9748,2733.2,2732.9,3.65901552]
[1748503791587,0.9748,2733.2,2732.7,3.65934703]
[1748503791806,0.9748,2733.2,2732.4,3.8]
[1748503792002,0.9748,2733.2,2732.7,3.65929118]
[1748503792165,0.9748,2733.2,2732.8,3.65924145]
[1748503792363,0.9748,2733.2,2732.9,3.65910711]
[1748503792567,0.9748,2733.2,2732.9,3.6590819]
[1748503793751,0.9748,2733.2,2732.6,0.1794]
[1748503793752,0.9748,2733.2,2732.6,3.83888833]
[1748503793966,0.9748,2733.2,2733.0,3.65889897]
[1748503794745,0.9748,2733.2,2732.9,3.65910752]
[1748503794954,1.0746,2733.7,2733.1,3.65876105]
[1748503795102,0.85315818,2733.6,2733.1,3.65876105]
[1748503795301,0.85315818,2733.6,2733.0,3.65891413]
[1748503796658,0.85315818,2733.6,2733.1,3.65873867]
[1748503797063,1.0746,2733.7,2733.1,3.65873867]
[1748503798185,1.0746,2733.7,2733.2,3.65871362]
[1748503799183,1.0746,2733.7,2733.1,3.65878517]
[1748503799381,0.9812,2733.6,2733.0,3.65891169]
[1748503800773,1.0808,2733.5,2732.7,3.65928737]
[1748503800973,7.50582921,2733.9,2732.6,8.0]
[1748503800974,1.0557,2733.3,2732.6,8.0]
[1748503801182,1.0557,2733.2,2732.6,11.65951131]
[1748503801382,1.0557,2733.2,2732.6,11.65950645]
[1748503801565,1.0557,2733.2,2732.6,8.0]
[1748503801751,1.0557,2733.2,2732.8,8.0]
[1748503801951,1.0557,2733.2,2732.6,11.65943788]
[1748503802152,1.0657,2732.8,2732.0,3.66027703]
[1748503802786,1.0657,2732.8,2732.2,8.0]
[1748503802987,1.0657,2732.8,2732.5,3.65958617]
[1748503803429,1.0657,2732.8,2732.5,3.65963172]
[1748503803787,1.0657,2732.8,2732.4,3.65971791]
[1748503804193,1.0657,2732.8,2732.5,3.65954265]
[1748503804626,1.0657,2732.8,2732.5,3.65961228]
[1748503804830,1.0657,2732.8,2732.5,3.65954201]
[1748503805134,1.0657,2732.8,2732.7,3.65938449]
[1748503805298,1.056,2733.3,2732.7,3.65938449]
[1748503806996,1.0173,2733.2,2732.6,3.65944361]
[1748503807635,1.0173,2733.2,2732.7,8.0]
[1748503807950,1.0173,2733.2,2732.7,11.65937314]
[1748503808552,1.0173,2733.2,2732.6,11.65942659]
[1748503809718,1.0173,2733.2,2732.7,3.65937923]
[1748503810410,1.021,2732.8,2732.3,3.65988427]
[1748503810742,1.021,2732.8,2732.2,3.6599932]
[1748503810943,1.021,2732.8,2732.3,8.0]
[1748503811949,1.021,2732.8,2732.2,8.0]
[1748503812243,1.021,2732.8,2732.2,11.65996977]
[1748503813047,1.021,2732.8,2732.3,3.65989762]
[1748503814559,1.021,2732.8,2732.4,0.03659526]
[1748503814742,1.021,2732.8,2732.1,5.44213905]
[1748503814743,1.021,2732.8,2732.6,3.65940604]
[1748503815049,7.45452462,2733.4,2732.6,3.6593973]
[1748503815255,0.9995,2733.0,2732.7,3.65936297]
[1748503815856,0.9995,2733.0,2732.8,3.65922981]
[1748503816074,0.05,2733.9,2732.9,3.65911668]
[1748503816075,1.0059,2733.3,2732.9,3.65911668]
[1748503816273,1.0059,2733.3,2733.1,3.65874925]
[1748503816473,1.0059,2733.3,2733.0,3.65884902]
[1748503816974,1.0059,2733.3,2732.7,0.1794]
[1748503817175,4.8648,2733.8,2733.2,3.65871505]
[1748503817375,0.85725892,2733.7,2733.1,3.65878063]
[1748503817974,0.85725892,2733.7,2733.2,3.65870429]
[1748503818135,0.85725892,2733.7,2733.2,3.65869437]
[1748503818337,1.0688,2733.8,2733.2,3.65869437]
[1748503818537,1.0688,2733.8,2733.3,3.6585653]
[1748503818762,1.0688,2733.8,2733.1,3.65877945]
[1748503819771,1.0688,2733.8,2733.2,3.65869615]
[1748503820075,1.0688,2733.8,2733.2,3.65871505]
[1748503820380,1.92605031,2733.8,2733.1,3.65882562]
[1748503820580,1.92605031,2733.8,2732.7,1.1854]
[1748503820875,1.0688,2733.8,2732.7,1.1854]
[1748503821081,1.0688,2733.8,2733.2,3.65870317]
[1748503822343,1.0688,2733.8,2733.4,3.65832985]
[1748503822679,1.0688,2733.8,2733.3,1.81853282]
[1748503822836,0.05,2733.9,2733.3,1.81853282]
[1748503822837,0.05,2733.9,2733.6,3.65808352]
[1748503823042,0.05,2733.9,2733.8,3.65791206]
[1748503823677,0.05,2733.9,2733.8,11.65791206]
[1748503824938,1.0799,2733.8,2733.5,3.6582468]
[1748503825138,1.0799,2733.8,2733.3,1.006]
[1748503825381,1.0799,2733.8,2733.3,4.801]
[1748503825585,1.0799,2733.8,2733.3,3.65847041]
[1748503825792,1.0799,2733.8,2733.2,3.65871378]
[1748503826085,1.0799,2733.8,2733.2,3.65868242]
[1748503826246,1.0799,2733.8,2733.1,4.801]
[1748503826447,1.0799,2733.8,2733.1,8.45980707]
[1748503826647,1.0799,2733.8,2733.5,3.65821402]
[1748503827085,1.0799,2733.8,2733.3,3.6585044]
[1748503827291,1.0799,2733.8,2733.4,3.65842973]
[1748503827893,1.0799,2733.8,2733.3,3.65852462]
[1748503828496,1.0799,2733.8,2733.1,4.66483166]
[1748503828669,1.0799,2733.8,2733.3,3.65848884]
[1748503831901,1.0799,2733.8,2733.4,3.65841694]
[1748503833010,1.0799,2733.8,2733.3,3.65852644]
[1748503833390,26.0799,2733.8,2733.3,3.65852644]
[1748503833971,26.0799,2733.8,2733.4,3.65839265]
[1748503834171,26.0799,2733.8,2733.3,3.65851153]
[1748503834776,26.0799,2733.8,2733.4,3.65840352]
[1748503835718,26.0799,2733.8,2733.3,3.65852034]
[1748503837181,26.0799,2733.8,2733.4,3.65841128]
[1748503837517,26.0799,2733.8,2733.3,3.65853313]
[1748503838136,26.0799,2733.8,2733.4,3.65844509]
[1748503838326,26.0799,2733.8,2733.3,3.65851041]
[1748503838700,26.0799,2733.8,2733.3,3.65856526]
[1748503838897,26.0799,2733.8,2733.1,8.45782284]
[1748503839321,26.0799,2733.8,2733.3,3.65857549]
[1748503840344,26.0799,2733.8,2733.2,3.65864414]
[1748503840946,26.0799,2733.8,2733.3,3.65857763]
[1748503843231,26.0799,2733.8,2733.2,3.65868916]
[1748503843545,26.0799,2733.8,2733.3,3.6584557]
[1748503843733,26.0799,2733.8,2733.4,3.6583977]
[1748503844334,26.0799,2733.8,2733.5,3.65822126]
[1748503844854,26.0799,2733.8,2732.5,0.2165]
[1748503844855,0.9987,2733.7,2732.5,0.2165]
[1748503845155,0.9987,2733.7,2733.1,3.65878504]
[1748503845365,0.9987,2733.7,2733.0,3.65895781]
[1748503845366,0.9987,2733.7,2733.2,3.65869219]
[1748503845515,0.9987,2733.7,2733.3,3.65858002]
[1748503846027,0.9987,2733.7,2733.5,3.658216]
[1748503846334,25.0,2733.8,2733.4,3.65844735]
[1748503846710,25.0,2733.8,2733.4,3.65839065]
[1748503847143,25.0,2733.8,2733.3,7.44951045]
[1748503847961,25.0,2733.8,2733.4,3.65844457]
[1748503848169,25.0,2733.8,2733.3,7.44951346]
[1748503848773,25.0,2733.8,2733.5,3.65827838]
[1748503849105,25.0,2733.8,2733.7,3.65804587]
[1748503849427,25.0,2733.8,2733.6,7.44911493]
[1748503850168,25.0,2733.8,2733.6,3.791]
[1748503850856,1.0027,2733.7,2733.4,3.791]
[1748503851058,1.0027,2733.7,2733.3,3.65849686]
[1748503851242,1.0027,2733.7,2733.4,7.44937626]
[1748503851445,1.0027,2733.7,2733.4,3.791]
[1748503852192,1.0027,2733.7,2733.3,3.65851201]
[1748503852485,1.0027,2733.7,2733.1,8.0]
[1748503852693,1.0027,2733.7,2733.2,3.791]
[1748503852870,1.0027,2733.7,2733.2,7.44968626]
[1748503853112,1.0027,2733.7,2733.2,3.65868626]
[1748503854127,1.0027,2733.7,2733.3,3.65855675]
[1748503854827,1.0027,2733.7,2733.1,15.44882534]
[1748503855326,1.0027,2733.7,2733.2,3.65871505]
[1748503856103,1.0027,2733.7,2733.2,7.44870328]
[1748503856305,1.0027,2733.7,2733.2,3.65870328]
[1748503857421,1.0027,2733.7,2733.1,3.79]
[1748503857812,1.0027,2733.7,2733.2,3.65870328]
[1748503858029,1.0027,2733.7,2733.2,3.65871505]
[1748503858689,1.0027,2733.7,2733.3,3.65857053]
[1748503858887,1.0027,2733.7,2733.2,3.65860278]
[1748503860148,1.0027,2733.7,2733.1,15.44881328]
[1748503860289,1.0027,2733.7,2733.2,3.65870248]
[1748503860634,1.0027,2733.7,2732.9,0.2156]
[1748503860635,2.92800568,2733.7,2732.9,0.2156]
[1748503860805,2.92800568,2733.7,2733.0,3.79]
[1748503860806,1.0307,2733.5,2733.0,3.79]
[1748503861415,1.0307,2733.4,2732.8,7.4481518]
[1748503861727,1.0307,2733.2,2732.6,1.003]
[1748503861896,3.65881209,2733.2,2732.6,1.003]
[1748503862100,1.0307,2733.1,2732.6,1.003]
[1748503862314,1.0307,2733.1,2732.6,8.0]
[1748503863228,1.065,2733.0,2732.6,11.65938567]
[1748503863392,1.065,2733.0,2732.8,8.0]
[1748503863898,1.065,2733.0,2732.9,3.65911668]
[1748503864088,3.789,2733.4,2733.0,3.65896967]
[1748503864294,0.3789,2733.3,2732.9,3.65905765]
[1748503864635,0.3789,2733.3,2733.0,3.65895969]
[1748503864636,1.0153,2733.3,2733.0,3.65895969]
[1748503865118,1.0153,2733.3,2733.1,3.65883174]
[1748503865321,1.0374,2733.6,2733.0,8.0]
[1748503865705,1.0374,2733.6,2733.0,3.65895201]
[1748503866331,1.0374,2733.6,2732.9,11.65902923]
[1748503867241,1.0374,2733.6,2732.9,4.33431816]
[1748503867739,1.0374,2733.6,2732.4,3.65974628]
[1748503867740,3.65886298,2733.1,2732.4,3.65974628]
[1748503868047,3.65919215,2732.9,2732.2,4.66295462]
[1748503868197,1.061,2732.8,2732.3,3.789]
[1748503868395,1.061,2732.8,2732.2,1.003]
[1748503868396,3.65925453,2732.8,2732.2,1.003]
[1748503868597,1.061,2732.7,2732.2,4.792]
[1748503868797,1.061,2732.7,2732.2,1.003]
[1748503868999,1.061,2732.7,2732.0,1.78195092]
[1748503869000,1.061,2732.7,2732.1,7.44911848]
[1748503869200,1.061,2732.7,2732.2,11.66002772]
[1748503869437,1.061,2732.7,2732.2,8.0]
[1748503870739,1.061,2732.7,2732.1,8.0]
[1748503871036,1.0054,2732.6,2732.1,8.0]
[1748503872150,1.0078,2733.4,2732.2,0.2156]
[1748503872447,1.0078,2733.1,2732.5,8.0]
[1748503873008,1.0078,2733.1,2732.5,11.65958603]
[1748503873245,1.0078,2733.1,2732.6,3.65948779]
[1748503873410,1.0078,2733.1,2732.7,8.0]
[1748503873824,1.0078,2733.1,2732.7,3.65937193]
[1748503875153,1.0078,2733.1,2732.7,8.0]
[1748503876842,26.0078,2733.1,2732.7,8.0]
[1748503877061,26.0078,2733.1,2732.4,1.001]
[1748503877062,4.67653627,2732.9,2732.4,1.001]
[1748503877354,1.0174,2732.8,2732.1,15.44807275]
[1748503877652,1.0174,2732.8,2732.1,11.788]
[1748503877851,1.0174,2732.8,2732.1,15.4481876]
[1748503878056,1.0174,2732.8,2732.2,3.65994201]
[1748503878651,1.0174,2732.8,2732.4,8.0]
[1748503878817,1.0174,2732.8,2732.2,3.66000115]
[1748503879012,1.1114,2732.7,2732.1,11.66013248]
[1748503879239,1.1114,2732.7,2732.1,15.44813248]
[1748503879445,1.1114,2732.7,2732.2,3.66002954]
[1748503879662,1.1114,2732.7,2732.1,15.44817079]
[1748503880271,1.1114,2732.7,2732.2,3.66005416]
[1748503880422,1.1114,2732.7,2732.1,11.788]
[1748503880623,1.1114,2732.7,2732.2,3.66004112]
[1748503881036,1.1114,2732.7,2732.4,8.0]
[1748503881261,1.1114,2732.7,2732.4,3.65971191]
[1748503881558,1.1114,2732.7,2732.3,11.65988222]
[1748503881756,1.1114,2732.7,2732.3,8.0]
[1748503881960,1.0887,2732.4,2731.8,3.66052349]
[1748503882159,1.0887,2732.4,2731.9,8.0]
[1748503882561,1.0887,2732.4,2731.9,3.66043928]
[1748503884442,1.0887,2732.4,2732.1,8.0]
[1748503885063,1.0887,2732.4,2731.9,3.66041005]
[1748503885765,1.0887,2732.4,2731.8,8.0]
[1748503885971,1.0887,2732.4,2732.1,8.0]
[1748503886129,1.0887,2732.4,2732.1,3.66016231]
[1748503886330,1.0887,2732.4,2732.0,1.81855174]
[1748503886632,1.0887,2732.4,2732.0,1.78195092]
[1748503887027,1.0887,2732.4,2732.1,3.66017692]
[1748503887657,1.0887,2732.4,2732.3,3.65992021]
[1748503887984,1.0887,2732.4,2732.1,3.6601657]
[1748503887985,25.0,2732.4,2732.1,3.66018813]
[1748503888168,25.0,2732.4,2732.3,3.65992021]
[1748503889228,25.0,2732.4,2732.0,3.66031188]
[1748503889432,25.0,2732.4,2731.9,3.788]
[1748503889433,25.0,2732.4,2732.1,3.66017896]
[1748503890642,25.0,2732.4,2732.0,3.6603077]
[1748503890643,25.0,2732.4,2732.0,3.66026862]
[1748503890837,1.0496,2732.3,2732.0,3.66026862]
[1748503891543,1.0496,2732.3,2731.9,3.788]
[1748503892170,1.0496,2732.3,2732.0,3.6602927]
[1748503892866,1.0496,2732.3,2731.9,3.66039502]
[1748503893654,1.0496,2732.3,2731.7,3.66069468]
[1748503893962,1.0162,2732.1,2731.2,10.32002269]
[1748503894161,1.0162,2732.1,2731.1,0.05]
[1748503894162,1.0162,2732.0,2731.1,0.05]
[1748503894365,3.66060437,2731.8,2731.1,3.71146059]
[1748503894567,1.0126,2731.7,2731.1,0.05]
[1748503894765,1.0126,2731.6,2731.1,0.05]
[1748503895085,1.0126,2731.6,2731.1,3.71151328]
[1748503896179,1.0126,2731.6,2731.2,3.66139425]
[1748503896369,1.0126,2731.6,2731.1,3.71152791]
[1748503896540,1.0126,2731.6,2731.3,3.66117372]
[1748503896969,1.0126,2731.6,2731.1,0.05]
[1748503897367,1.0126,2731.6,2731.3,3.66125155]
[1748503897554,1.0126,2731.6,2731.2,3.66133539]
[1748503898164,1.0126,2731.6,2731.1,0.05]
[1748503898864,1.46936972,2731.6,2731.1,0.05]
[1748503899064,1.105,2731.5,2731.1,0.05]
[1748503904748,3.787,2732.0,2731.1,0.05]
[1748503904749,1.0159,2731.2,2731.1,0.05]
[1748503907992,4.67729425,2731.2,2731.1,0.05]
[1748503908151,5.20362368,2731.2,2731.1,0.05]
[1748503909826,5.75362368,2731.2,2731.1,0.05]
[1748503910032,4.68719878,2730.6,2730.5,0.66666667]
[1748503910298,1.025,2730.6,2730.5,0.66666667]
[1748503912650,1.032,2730.9,2730.5,0.66666667]
[1748503913000,4.69388069,2730.9,2730.5,0.66666667]
[1748503913199,1.032,2730.9,2730.5,0.66666667]
[1748503913757,4.69386916,2730.9,2730.5,0.66666667]
[1748503914258,3.66193936,2730.8,2730.5,0.66666667]
[1748503915353,5.52937852,2730.9,2730.5,0.66666667]
[1748503916137,1.0248,2730.8,2730.5,0.66666667]
[1748503917240,4.68679814,2730.8,2730.5,0.66666667]
[1748503918199,1.0248,2730.8,2730.5,0.66666667]
[1748503918997,4.68673115,2730.8,2730.5,0.66666667]
[1748503919199,1.0248,2730.8,2730.5,0.66666667]
[1748503922151,4.68675252,2730.8,2730.5,0.66666667]
[1748503922531,1.0248,2730.8,2730.5,0.66666667]
[1748503922851,1.0255,2731.0,2730.5,0.66666667]
[1748503923234,4.68724758,2731.0,2730.5,0.66666667]
[1748503923430,5.56890698,2731.0,2730.5,0.66666667]
[1748503923951,1.0255,2731.0,2730.5,0.66666667]
[1748503924359,1.0255,2731.0,2730.5,4.32892707]
[1748503924531,1.1186,2731.5,2730.9,3.66179647]
[1748503924730,3.66068523,2731.8,2730.9,3.66179647]
[1748503924731,1.1186,2731.7,2731.0,3.66159475]
[1748503925062,1.1186,2731.7,2731.2,3.66132118]
[1748503925063,0.84397463,2731.7,2731.2,3.66132118]
[1748503925257,0.84397463,2731.7,2731.1,4.0372149]
[1748503925258,3.66035249,2732.0,2731.3,3.66116415]
[1748503925558,4.77884718,2732.1,2731.2,3.66136417]
[1748503925921,3.66034887,2732.0,2731.3,3.66117935]
[1748503926862,4.77880905,2732.1,2731.4,3.66111632]
[1748503927022,3.66044594,2732.0,2731.2,3.66132662]
[1748503927217,3.66044594,2732.0,2731.2,3.66139425]
[1748503927422,4.13835053,2732.0,2731.3,3.66119655]
[1748503927830,0.47790459,2732.0,2731.3,3.66119655]
[1748503928047,4.13823775,2732.0,2731.3,3.66119655]
[1748503928674,0.47790459,2732.0,2731.2,3.66135829]
[1748503928935,8.31607837,2732.3,2731.5,3.66093027]
[1748503928936,1.92415813,2732.3,2731.5,3.66093027]
[1748503929223,3.66007269,2732.2,2731.5,3.66093027]
[1748503929437,3.66007269,2732.2,2731.4,4.03676672]
[1748503929613,3.66040648,2732.0,2731.2,3.66134573]
[1748503929768,0.87015813,2732.3,2731.2,0.3757]
[1748503929769,4.77616607,2731.9,2731.2,0.3757]
[1748503929967,3.66060231,2731.8,2731.2,0.3757]
[1748503930596,4.77618986,2731.9,2731.2,0.3757]
[1748503930761,1.1157,2731.9,2731.3,3.66116496]
[1748503931086,1.1157,2731.9,2731.3,3.66117027]
[1748503931272,1.1157,2731.9,2731.2,4.03707617]
[1748503931477,1.1157,2731.9,2731.4,3.66104148]
[1748503931879,1.1157,2731.9,2731.5,3.66099097]
[1748503932097,1.1157,2731.9,2731.4,3.66104765]
[1748503932604,1.0551,2732.3,2731.3,3.69775074]
[1748503932898,1.00946937,2732.2,2731.5,3.66091767]
[1748503933213,1.0551,2732.3,2731.6,3.66073607]
[1748503933362,1.0551,2732.3,2731.7,3.66068982]
[1748503933703,1.0551,2732.3,2731.2,0.3757]
[1748503933878,1.0551,2732.3,2731.4,3.66099563]
[1748503934077,1.1066,2732.3,2731.2,0.3757]
[1748503934400,1.1066,2731.9,2731.3,3.66125023]
[1748503934615,1.1066,2731.9,2731.4,3.66110206]
[1748503936087,1.1066,2731.9,2731.3,3.66121337]
[1748503936775,4.7671307,2731.9,2731.2,4.03700176]
[1748503937314,4.7671307,2731.9,2731.2,3.66130176]
[1748503937476,4.7671307,2731.9,2731.1,3.66151709]
[1748503937477,3.66064407,2731.8,2731.1,3.66151709]
[1748503937818,1.1266,2731.4,2730.7,0.3757]
[1748503938019,3.66128313,2731.3,2730.6,3.66211967]
[1748503938314,3.66150527,2731.2,2730.5,9.48665131]
[1748503938519,3.66130969,2731.3,2730.6,3.66218414]
[1748503938677,4.46452543,2731.3,2730.6,3.66218414]
[1748503939034,4.46452829,2731.3,2730.6,3.66219565]
[1748503939694,0.80321574,2731.3,2730.6,3.66219565]
[1748503940143,0.80321574,2731.3,2730.7,3.66205855]
[1748503940442,0.80321574,2731.3,2730.5,9.48668774]
[1748503940443,0.80321574,2731.3,2730.6,3.66213761]
[1748503941010,0.55909933,2731.2,2730.5,12.70464171]
[1748503941213,4.22052843,2731.2,2730.5,12.70464171]
[1748503941429,1.1338,2731.1,2730.5,12.32894171]
[1748503941594,3.66172215,2731.0,2730.5,0.66666667]
[1748503942133,4.79560884,2730.9,2730.5,0.66666667]
[1748503942317,1.1338,2730.9,2730.5,0.66666667]
[1748503942691,5.27521425,2730.9,2730.5,0.66666667]
[1748503943493,3.661991,2730.8,2730.5,0.66666667]
[1748503943737,3.66202947,2730.8,2730.5,0.66666667]
[1748503944025,1.044,2730.8,2730.5,0.66666667]
[1748503944231,4.7059981,2730.8,2730.5,0.66666667]
[1748503944528,4.13266715,2730.7,2730.5,0.66666667]
[1748503944843,3.66219878,2730.6,2730.5,0.66666667]
[1748503945041,4.13271468,2730.7,2730.5,0.66666667]
[1748503945339,0.47059981,2730.7,2730.5,0.66666667]
[1748503945914,4.13266507,2730.7,2730.5,0.66666667]
[1748503946343,0.47059981,2730.7,2730.5,0.66666667]
[1748503946643,5.26655858,2730.6,2730.5,0.66666667]
[1748503947452,1.6043598,2730.6,2730.5,0.66666667]
[1748503948779,5.26655858,2730.6,2730.5,0.66666667]
[1748503954462,1.6043598,2730.6,2730.5,0.66666667]
[1748503954981,1.0867,2730.6,2730.5,0.66666667]
[1748503956385,4.75968232,2730.9,2730.5,0.66666667]
[1748503956537,4.75962556,2730.9,2730.5,0.66666667]
[1748503957168,4.75966546,2730.9,2730.5,0.66666667]
[1748503957375,1.220534,2730.8,2730.5,0.66666667]
[1748503958748,1.220534,2730.8,2730.2,4.0389686]
[1748503959070,4.75962351,2730.9,2730.2,0.3763]
[1748503959591,3.66211494,2730.7,2730.2,0.3763]
[1748503959985,3.66227637,2730.6,2730.1,0.05]
[1748503960341,3.6621171,2730.7,2730.1,0.05]
[1748503960565,4.7596633,2730.9,2730.2,3.66263818]
[1748503960952,3.66194219,2730.8,2730.1,3.71280515]
[1748503961387,4.7596447,2730.9,2730.1,0.05]
[1748503961589,1.95216447,2730.9,2730.1,0.05]
[1748503961894,3.66196685,2730.8,2730.1,3.71282484]
[1748503962194,1.0978,2730.9,2730.1,0.05]
[1748503962392,3.6619858,2730.8,2730.1,3.7128438]
[1748503962552,1.0978,2730.9,2730.2,0.3763]
[1748503962751,1.0558,2731.3,2730.5,0.3763]
[1748503962986,4.71715675,2731.3,2730.6,3.66219878]
[1748503963251,3.6614777,2731.2,2730.5,4.03863127]
[1748503963468,1.0558,2731.3,2730.5,0.3763]
[1748503963665,3.66167879,2731.0,2730.5,0.3763]
[1748503963895,5.3868526,2731.3,2730.5,0.3763]
[1748503964190,3.66155963,2731.1,2730.5,0.3763]
[1748503964350,3.66167554,2731.0,2730.5,0.3763]
[1748503964783,3.66188401,2730.9,2730.2,8.3763]
[1748503964991,3.66188401,2730.9,2730.2,12.03895155]
[1748503965553,3.66188401,2730.9,2730.2,8.3763]
[1748503965554,1.036,2730.9,2730.2,8.3763]
[1748503965752,4.69786391,2730.9,2730.2,4.03900307]
[1748503966811,1.036,2730.9,2730.3,3.66258462]
[1748503967010,0.66974442,2731.3,2730.2,0.3763]
[1748503967325,0.66974442,2731.3,2730.1,8.05]
[1748503967326,1.0415,2731.2,2730.6,4.03847912]
[1748503967614,1.0415,2731.5,2730.9,3.66172779]
[1748503967765,0.47023436,2731.5,2730.9,3.66172779]
[1748503967972,1.0415,2731.7,2730.9,8.3763]
[1748503968284,1.0415,2731.7,2731.1,3.66145872]
[1748503968468,3.66052052,2731.9,2731.0,3.66165612]
[1748503968671,1.0415,2732.0,2730.9,12.03806337]
[1748503969022,3.66070309,2731.8,2730.9,12.03806337]
[1748503969227,3.66070309,2731.8,2731.1,3.66145833]
[1748503970477,3.66076342,2731.7,2731.0,3.66163467]
[1748503970790,4.39294815,2731.7,2731.0,3.66166055]
[1748503971915,1.0686,2731.6,2730.9,0.3763]
[1748503972131,1.0686,2731.6,2730.3,1.78539808]
[1748503972132,3.66132732,2731.3,2730.7,8.0]
[1748503972469,3.66132732,2731.3,2730.5,5.05850063]
[1748503972727,3.66132732,2731.3,2730.6,3.66212767]
[1748503972881,4.39356207,2731.3,2730.6,3.66212767]
[1748503973279,0.73223475,2731.3,2730.5,3.66233284]
[1748503973517,4.39349848,2731.3,2730.6,3.66210039]
[1748503973749,0.73223475,2731.3,2730.4,4.779]
[1748503973952,4.39356437,2731.3,2730.6,3.66215067]
[1748503974111,1.56385644,2731.2,2730.3,2.78239808]
[1748503974311,4.7859651,2731.2,2730.5,3.66232542]
[1748503974707,1.1245,2731.2,2730.6,3.66207443]
[1748503974911,1.0825,2731.3,2730.5,3.6623329]
[1748503975169,1.0825,2731.3,2730.7,3.66206005]
[1748503975312,1.55687284,2731.3,2730.4,8.0]
[1748503975508,1.0825,2731.3,2730.7,3.66201973]
[1748503975936,1.0825,2731.3,2730.4,8.0]
[1748503976140,1.0825,2731.3,2730.7,8.0]
[1748503976363,1.0825,2731.3,2730.5,3.6623329]
[1748503976658,1.0825,2731.3,2730.7,3.66203283]
[1748503977076,1.0825,2731.3,2730.7,11.66200105]
[1748503977366,1.0825,2731.3,2730.8,3.66192504]
[1748503977723,1.0517,2731.5,2730.9,3.66178867]
[1748503977926,1.0517,2731.5,2731.0,3.6616492]
[1748503978144,1.0517,2731.5,2730.9,3.6617201]
[1748503978765,1.0517,2731.5,2730.9,3.66170354]
[1748503979089,1.0517,2731.5,2730.7,5.44745974]
[1748503979290,4.71275793,2731.5,2730.8,3.66182698]
[1748503979644,3.66114805,2731.4,2730.7,13.44741332]
[1748503980743,5.55012243,2731.5,2730.8,3.66192345]
[1748503980943,5.55012243,2731.5,2730.7,5.44742072]
[1748503980944,3.66119286,2731.4,2730.7,5.44742072]
[1748503981480,1.88906363,2731.5,2730.7,1.78539808]
[1748503981663,1.0517,2731.5,2730.9,3.66176959]
[1748503981864,4.71271168,2731.5,2730.8,3.66184556]
[1748503982570,3.6611451,2731.4,2730.7,5.44740621]
[1748503982948,3.6612484,2731.4,2730.7,13.44745083]
[1748503983488,1.0517,2731.5,2730.9,3.66171956]
[1748503983791,1.52296255,2731.5,2730.9,3.66171956]
[1748503984456,1.1271,2731.8,2730.7,1.78539808]
[1748503984658,3.66081984,2731.7,2731.0,3.66164157]
[1748503984858,1.0979,2731.5,2730.9,3.66177419]
[1748503985612,4.75889377,2731.5,2730.8,3.66186412]
[1748503985993,3.66116516,2731.4,2730.7,3.662026]
[1748503986197,3.66116516,2731.4,2730.7,7.443026]
[1748503986366,4.75895785,2731.5,2730.8,3.66192277]
[1748503986571,3.66119582,2731.4,2730.7,7.44305419]
[1748503986770,3.66119582,2731.4,2730.7,3.781]
[1748503987166,4.75895673,2731.5,2730.8,3.66192429]
[1748503987478,4.75895781,2731.5,2730.8,3.66186015]
[1748503988203,3.66115019,2731.4,2730.7,7.44300785]
[1748503988413,1.1158,2730.8,2730.1,1.047]
[1748503988635,1.1158,2730.8,2730.3,3.66260012]
[1748503989482,1.1158,2730.8,2730.2,7.44271491]